[Event "*** Qualifier 4: Titled Tuesday 3|2 Blitz"]
[Site "Chess.com"]
[Date "2017.04.25"]
[Round "6"]
[White "ChessQueen"]
[Black "Yaacovn"]
[Result "1-0"]
[WhiteElo "2510"]
[BlackElo "2595"]
[TimeControl "180+2"]
[EndTime "14:18:15 PDT"]
[Termination "ChessQueen won by resignation"]

1. e4 {[%clk 0:03:02]} 1... c6 {[%clk 0:02:59.1]} 2. d4 {[%clk 0:03:02.5]} 2...
d5 {[%clk 0:03:01]} 3. e5 {[%clk 0:03:03.8]} 3... Bf5 {[%clk 0:03:01.8]} 4. Nf3
{[%clk 0:03:05]} 4... e6 {[%clk 0:03:03.2]} 5. Be2 {[%clk 0:03:06.4]} 5... Ne7
{[%clk 0:03:04.8]} 6. O-O {[%clk 0:03:07.7]} 6... Bg6 {[%clk 0:03:06.5]} 7. Nbd2
{[%clk 0:03:08]} 7... Nf5 {[%clk 0:03:08]} 8. Nb3 {[%clk 0:03:07.2]} 8... Nd7
{[%clk 0:03:09.5]} 9. a4 {[%clk 0:03:06.4]} 9... a6 {[%clk 0:03:10.9]} 10. Re1
{[%clk 0:03:04]} 10... c5 {[%clk 0:03:11.5]} 11. c4 {[%clk 0:03:01]} 11... dxc4
{[%clk 0:03:12.6]} 12. Bxc4 {[%clk 0:03:01.6]} 12... Nb6 {[%clk 0:03:13.8]} 13.
Bd3 {[%clk 0:02:38.9]} 13... c4 {[%clk 0:03:14.6]} 14. Bxf5 {[%clk 0:02:40]}
14... Bxf5 {[%clk 0:03:14.4]} 15. Nc5 {[%clk 0:02:35.2]} 15... Bxc5 {[%clk
0:03:01.6]} 16. dxc5 {[%clk 0:02:35.9]} 16... Qxd1 {[%clk 0:03:02.7]} 17. Rxd1
{[%clk 0:02:36.9]} 17... Nd5 {[%clk 0:03:04.4]} 18. Rd4 {[%clk 0:02:29]} 18...
Bd3 {[%clk 0:02:36.2]} 19. Ne1 {[%clk 0:02:11.8]} 19... Nb4 {[%clk 0:02:22.4]}
20. Rg4 {[%clk 0:01:13.6]} 20... h5 {[%clk 0:01:51.3]} 21. Nxd3 {[%clk
0:00:38.7]} 21... Nc2 {[%clk 0:01:36.7]} 22. Rxc4 {[%clk 0:00:39.4]} 22... Nxa1
{[%clk 0:01:37.3]} 23. Rc3 {[%clk 0:00:36.8]} 23... O-O-O {[%clk 0:01:31.6]} 24.
Bg5 {[%clk 0:00:34.5]} 24... Rd4 {[%clk 0:01:30]} 25. b3 {[%clk 0:00:32.7]}
25... Nc2 {[%clk 0:01:24.8]} 26. h4 {[%clk 0:00:33.7]} 26... Nb4 {[%clk
0:01:23.4]} 27. Nb2 {[%clk 0:00:34.8]} 27... Nd5 {[%clk 0:01:18.9]} 28. Rf3
{[%clk 0:00:35.9]} 28... Rf8 {[%clk 0:00:26.1]} 29. Nc4 {[%clk 0:00:37]} 29...
Kd7 {[%clk 0:00:24.6]} 30. Na5 {[%clk 0:00:32.1]} 30... Kc7 {[%clk 0:00:23.2]}
31. Rg3 {[%clk 0:00:24]} 31... Rg4 {[%clk 0:00:21.7]} 32. Rf3 {[%clk 0:00:24.9]}
32... f6 {[%clk 0:00:22.6]} 33. exf6 {[%clk 0:00:25.6]} 33... gxf6 {[%clk
0:00:24.5]} 34. Bd2 {[%clk 0:00:25.7]} 34... Rxh4 {[%clk 0:00:24.3]} 35. Nc4
{[%clk 0:00:26.9]} 35... Rd4 {[%clk 0:00:23.7]} 36. Bh6 {[%clk 0:00:23.5]} 36...
Rg8 {[%clk 0:00:23.1]} 37. Ne3 {[%clk 0:00:16.1]} 37... f5 {[%clk 0:00:21.2]}
38. Nc4 {[%clk 0:00:16.7]} 38... Rdg4 {[%clk 0:00:21.8]} 39. g3 {[%clk
0:00:17.3]} 39... h4 {[%clk 0:00:23.3]} 40. Ne5 {[%clk 0:00:18.3]} 40... Re4
{[%clk 0:00:22.1]} 41. Nf7 {[%clk 0:00:19.3]} 41... hxg3 {[%clk 0:00:22.1]} 42.
fxg3 {[%clk 0:00:20.5]} 42... Rg6 {[%clk 0:00:22.3]} 43. Bd2 {[%clk 0:00:20.4]}
43... Rd4 {[%clk 0:00:22.7]} 44. Ba5+ {[%clk 0:00:21.5]} 44... Kb8 {[%clk
0:00:23.7]} 45. Ne5 {[%clk 0:00:20.4]} 45... Rg8 {[%clk 0:00:23.1]} 46. Nd7+
{[%clk 0:00:20.7]} 46... Kc8 {[%clk 0:00:22.6]} 47. Ne5 {[%clk 0:00:20.9]} 47...
Rd1+ {[%clk 0:00:23.3]} 48. Kf2 {[%clk 0:00:21.6]} 48... Rh8 {[%clk 0:00:22.4]}
49. Kg2 {[%clk 0:00:22]} 49... Rhh1 {[%clk 0:00:23]} 50. Rf2 {[%clk 0:00:21.4]}
50... Rhg1+ {[%clk 0:00:22.6]} 51. Kf3 {[%clk 0:00:22.8]} 51... Rb1 {[%clk
0:00:22.3]} 52. Rh2 {[%clk 0:00:19.7]} 52... Rxb3+ {[%clk 0:00:21.3]} 53. Kf2
{[%clk 0:00:21.1]} 53... b6 {[%clk 0:00:10.2]} 54. Rh8+ {[%clk 0:00:18.6]} 54...
Kb7 {[%clk 0:00:10.9]} 55. Rh7+ {[%clk 0:00:19.8]} 55... Kc8 {[%clk 0:00:12]}
56. Rh8+ {[%clk 0:00:20.3]} 56... Kc7 {[%clk 0:00:11.4]} 57. Rh7+ {[%clk
0:00:20.8]} 57... Kc8 {[%clk 0:00:12.6]} 58. Rh8+ {[%clk 0:00:20.9]} 58... Kb7
{[%clk 0:00:13.4]} 59. Rh7+ {[%clk 0:00:21.5]} 59... Kc8 {[%clk 0:00:12.2]} 60.
Rh8+ {[%clk 0:00:22.4]} 60... Kc7 {[%clk 0:00:13.4]} 61. Bxb6+ {[%clk 0:00:19]}
61... Nxb6 {[%clk 0:00:12.1]} 62. cxb6+ {[%clk 0:00:20.3]} 62... Kd6 {[%clk
0:00:13.1]} 63. Nc4+ {[%clk 0:00:19.4]} 63... Kc5 {[%clk 0:00:13.6]} 64. Rc8+
{[%clk 0:00:20.2]} 64... Kd4 {[%clk 0:00:12.3]} 65. Kxg1 {[%clk 0:00:21.3]}
65... e5 {[%clk 0:00:13.9]} 66. a5 {[%clk 0:00:20.5]} 66... e4 {[%clk
0:00:10.9]} 67. Nd6 {[%clk 0:00:21.6]} 67... Ke3 {[%clk 0:00:11.2]} 68. Nxf5+
{[%clk 0:00:21.9]} 68... Kf3 {[%clk 0:00:12.1]} 69. Nd4+ {[%clk 0:00:23]} 69...
Ke3 {[%clk 0:00:11.8]} 70. Nxb3 {[%clk 0:00:24]} 1-0

[Event "*** Qualifier 4: Titled Tuesday 3|2 Blitz"]
[Site "Chess.com"]
[Date "2017.04.25"]
[Round "7"]
[White "MateusViageiro"]
[Black "FearlessKing64"]
[Result "0-1"]
[WhiteElo "2260"]
[BlackElo "2102"]
[TimeControl "180+2"]
[EndTime "14:25:04 PDT"]
[Termination "FearlessKing64 won by resignation"]

1. e4 {[%clk 0:03:02]} 1... c5 {[%clk 0:03:00.4]} 2. Nf3 {[%clk 0:03:03]} 2...
d6 {[%clk 0:03:01.6]} 3. d4 {[%clk 0:03:04.4]} 3... cxd4 {[%clk 0:03:03.5]} 4.
Nxd4 {[%clk 0:03:05.8]} 4... Nf6 {[%clk 0:03:05.1]} 5. Nc3 {[%clk 0:03:07.3]}
5... a6 {[%clk 0:03:06.4]} 6. Be3 {[%clk 0:03:07.9]} 6... e5 {[%clk 0:03:07.7]}
7. Nb3 {[%clk 0:03:08.9]} 7... Be6 {[%clk 0:03:09.3]} 8. f3 {[%clk 0:03:09.7]}
8... Be7 {[%clk 0:03:10.5]} 9. Qd2 {[%clk 0:03:09.5]} 9... O-O {[%clk
0:03:11.4]} 10. O-O-O {[%clk 0:03:10.6]} 10... Nbd7 {[%clk 0:03:13]} 11. g4
{[%clk 0:03:11.7]} 11... b5 {[%clk 0:03:14.5]} 12. g5 {[%clk 0:03:12.6]} 12...
b4 {[%clk 0:03:16]} 13. Nd5 {[%clk 0:03:10.9]} 13... Nxd5 {[%clk 0:03:08.2]} 14.
exd5 {[%clk 0:03:11.8]} 14... Bf5 {[%clk 0:03:09]} 15. Na5 {[%clk 0:03:10.8]}
15... Qxa5 {[%clk 0:03:05.1]} 16. Kb1 {[%clk 0:03:08.4]} 16... Rfc8 {[%clk
0:02:59.3]} 17. Bd3 {[%clk 0:03:08.5]} 17... Bxd3 {[%clk 0:02:59]} 18. Qxd3
{[%clk 0:03:09.7]} 18... Nc5 {[%clk 0:02:55.1]} 19. Qe2 {[%clk 0:03:10]} 19...
Na4 {[%clk 0:02:45.3]} 20. h4 {[%clk 0:03:05.2]} 20... Rab8 {[%clk 0:02:45.8]}
21. h5 {[%clk 0:03:00.1]} 21... Nc3+ {[%clk 0:02:46.1]} 22. bxc3 {[%clk
0:02:59.8]} 22... bxc3+ {[%clk 0:02:47.2]} 23. Ka1 {[%clk 0:03:00.6]} 23... Rb2
{[%clk 0:02:46.9]} 0-1

[Event "*** Qualifier 4: Titled Tuesday 3|2 Blitz"]
[Site "Chess.com"]
[Date "2017.04.25"]
[Round "7"]
[White "MasterLeif"]
[Black "r31415"]
[Result "1-0"]
[WhiteElo "2309"]
[BlackElo "2189"]
[TimeControl "180+2"]
[EndTime "14:26:16 PDT"]
[Termination "MasterLeif won by checkmate"]

1. d4 {[%clk 0:02:44.1]} 1... d6 {[%clk 0:03:02]} 2. e4 {[%clk 0:02:43.8]} 2...
Nf6 {[%clk 0:03:02.9]} 3. Nc3 {[%clk 0:02:44.1]} 3... g6 {[%clk 0:03:04.5]} 4.
Nf3 {[%clk 0:02:41.2]} 4... Bg7 {[%clk 0:03:05]} 5. Be2 {[%clk 0:02:42.4]} 5...
O-O {[%clk 0:03:06]} 6. O-O {[%clk 0:02:43.7]} 6... c6 {[%clk 0:03:07.7]} 7. a4
{[%clk 0:02:44.3]} 7... Qc7 {[%clk 0:03:08.3]} 8. Bf4 {[%clk 0:02:39.1]} 8...
Nh5 {[%clk 0:02:59.7]} 9. Be3 {[%clk 0:02:38.7]} 9... Nd7 {[%clk 0:02:54.4]} 10.
d5 {[%clk 0:02:33.8]} 10... Nhf6 {[%clk 0:02:36.1]} 11. Qd2 {[%clk 0:02:30.8]}
11... Rd8 {[%clk 0:02:32.4]} 12. Bh6 {[%clk 0:02:29.2]} 12... Bh8 {[%clk
0:02:16.3]} 13. Rfe1 {[%clk 0:02:28.2]} 13... Nc5 {[%clk 0:02:05.6]} 14. dxc6
{[%clk 0:02:26.6]} 14... bxc6 {[%clk 0:01:59.5]} 15. Bc4 {[%clk 0:02:27.5]}
15... Bg4 {[%clk 0:01:44.9]} 16. e5 {[%clk 0:02:16.5]} 16... dxe5 {[%clk
0:01:41.5]} 17. Nxe5 {[%clk 0:02:18.2]} 17... Rxd2 {[%clk 0:01:41.6]} 18. Bxf7#
{[%clk 0:02:18.3]} 1-0

[Event "*** Qualifier 4: Titled Tuesday 3|2 Blitz"]
[Site "Chess.com"]
[Date "2017.04.25"]
[Round "7"]
[White "Enzy63"]
[Black "pawnwonder"]
[Result "1-0"]
[WhiteElo "2020"]
[BlackElo "1846"]
[TimeControl "180+2"]
[EndTime "14:26:27 PDT"]
[Termination "Enzy63 won by resignation"]

1. d4 {[%clk 0:03:02]} 1... Nf6 {[%clk 0:03:00.2]} 2. Nf3 {[%clk 0:03:03]} 2...
g6 {[%clk 0:03:01.6]} 3. c4 {[%clk 0:03:03.4]} 3... Bg7 {[%clk 0:03:02.8]} 4. g3
{[%clk 0:03:05]} 4... O-O {[%clk 0:03:03.7]} 5. Bg2 {[%clk 0:03:06.6]} 5... d6
{[%clk 0:03:05.1]} 6. O-O {[%clk 0:03:07.9]} 6... c5 {[%clk 0:03:06.5]} 7. Nc3
{[%clk 0:02:56.3]} 7... Nc6 {[%clk 0:03:04.8]} 8. dxc5 {[%clk 0:02:45.9]} 8...
dxc5 {[%clk 0:03:05.3]} 9. Bf4 {[%clk 0:02:35.7]} 9... Bg4 {[%clk 0:03:05.3]}
10. Ne5 {[%clk 0:02:26.4]} 10... Nxe5 {[%clk 0:03:01]} 11. Bxe5 {[%clk
0:02:27.4]} 11... Qb6 {[%clk 0:02:49]} 12. h3 {[%clk 0:02:22.7]} 12... Be6
{[%clk 0:02:47.5]} 13. b3 {[%clk 0:02:12.9]} 13... Rad8 {[%clk 0:02:45.5]} 14.
Qc2 {[%clk 0:02:09.1]} 14... Bf5 {[%clk 0:02:36.4]} 15. e4 {[%clk 0:02:08.9]}
15... Nxe4 {[%clk 0:02:15.6]} 16. Bxg7 {[%clk 0:01:53.2]} 16... Kxg7 {[%clk
0:02:17.5]} 17. Nxe4 {[%clk 0:01:48]} 1-0

[Event "*** Qualifier 4: Titled Tuesday 3|2 Blitz"]
[Site "Chess.com"]
[Date "2017.04.25"]
[Round "7"]
[White "Outsmiter"]
[Black "Ibtihal24"]
[Result "1-0"]
[WhiteElo "2036"]
[BlackElo "1460"]
[TimeControl "180+2"]
[EndTime "14:28:22 PDT"]
[Termination "Outsmiter won by checkmate"]

1. e4 {[%clk 0:03:02]} 1... c5 {[%clk 0:02:39.7]} 2. Nc3 {[%clk 0:03:02.4]} 2...
Nc6 {[%clk 0:02:39.4]} 3. f4 {[%clk 0:03:03.8]} 3... d6 {[%clk 0:02:34.2]} 4.
Nf3 {[%clk 0:03:04.1]} 4... Bg4 {[%clk 0:02:27.9]} 5. Bb5 {[%clk 0:03:03.9]}
5... Nf6 {[%clk 0:02:10.4]} 6. Bxc6+ {[%clk 0:03:00.1]} 6... bxc6 {[%clk
0:02:10.4]} 7. O-O {[%clk 0:02:59.1]} 7... d5 {[%clk 0:02:09.1]} 8. e5 {[%clk
0:02:59.3]} 8... Ne4 {[%clk 0:02:06.3]} 9. d3 {[%clk 0:02:57.7]} 9... Nxc3
{[%clk 0:02:05]} 10. bxc3 {[%clk 0:02:59.6]} 10... Bxf3 {[%clk 0:02:00.5]} 11.
Qxf3 {[%clk 0:02:58.9]} 11... e6 {[%clk 0:02:00.3]} 12. f5 {[%clk 0:02:53.6]}
12... Be7 {[%clk 0:01:49.8]} 13. fxe6 {[%clk 0:02:45.9]} 13... f6 {[%clk
0:01:35.3]} 14. exf6 {[%clk 0:02:29.1]} 14... Bxf6 {[%clk 0:01:35.6]} 15. Qh5+
{[%clk 0:02:28.4]} 15... g6 {[%clk 0:01:23.2]} 16. Qg4 {[%clk 0:02:19.3]} 16...
O-O {[%clk 0:01:18.4]} 17. Bh6 {[%clk 0:02:01.9]} 17... Re8 {[%clk 0:01:09.4]}
18. Rae1 {[%clk 0:01:53.3]} 18... Qe7 {[%clk 0:01:09.1]} 19. Qf3 {[%clk
0:01:44.6]} 19... Bg7 {[%clk 0:00:57]} 20. Qf7+ {[%clk 0:01:41.9]} 20... Kh8
{[%clk 0:00:50.2]} 21. Bxg7# {[%clk 0:01:41.2]} 1-0

[Event "*** Qualifier 4: Titled Tuesday 3|2 Blitz"]
[Site "Chess.com"]
[Date "2017.04.25"]
[Round "7"]
[White "cailinchetty"]
[Black "aa175"]
[Result "1-0"]
[WhiteElo "1944"]
[BlackElo "1800"]
[TimeControl "180+2"]
[EndTime "14:28:58 PDT"]
[Termination "cailinchetty won on time"]

1. e4 {[%clk 0:03:02]} 1... e5 {[%clk 0:02:59.7]} 2. Nf3 {[%clk 0:03:03.3]} 2...
Nc6 {[%clk 0:03:00]} 3. Bb5 {[%clk 0:03:04.7]} 3... Nf6 {[%clk 0:02:59.1]} 4.
O-O {[%clk 0:03:05.1]} 4... Bc5 {[%clk 0:02:58.3]} 5. Re1 {[%clk 0:03:04.4]}
5... O-O {[%clk 0:02:58.2]} 6. c3 {[%clk 0:03:04]} 6... d6 {[%clk 0:02:36.8]} 7.
h3 {[%clk 0:03:03.6]} 7... a6 {[%clk 0:02:35.2]} 8. Ba4 {[%clk 0:03:04.2]} 8...
b5 {[%clk 0:02:35.7]} 9. Bb3 {[%clk 0:03:05.3]} 9... Na5 {[%clk 0:02:22.1]} 10.
Bc2 {[%clk 0:03:03.3]} 10... Bb7 {[%clk 0:02:14]} 11. b4 {[%clk 0:03:01.1]}
11... d5 {[%clk 0:01:42.1]} 12. bxc5 {[%clk 0:02:55]} 12... dxe4 {[%clk
0:01:36.5]} 13. Nxe5 {[%clk 0:02:54]} 13... Qd5 {[%clk 0:01:31.3]} 14. Ng4
{[%clk 0:02:50.9]} 14... Nh5 {[%clk 0:00:22.5]} 15. Ne3 {[%clk 0:02:40]} 15...
Qxc5 {[%clk 0:00:22.1]} 16. Ba3 {[%clk 0:02:37.2]} 16... Qg5 {[%clk 0:00:19.9]}
17. Bxf8 {[%clk 0:02:34.2]} 17... Nf4 {[%clk 0:00:20.5]} 18. Qg4 {[%clk
0:02:33.8]} 18... Qxg4 {[%clk 0:00:15.6]} 19. Nxg4 {[%clk 0:02:30.2]} 19... Rxf8
{[%clk 0:00:17.5]} 20. Bxe4 {[%clk 0:02:26.9]} 20... Re8 {[%clk 0:00:17.2]} 21.
Bxh7+ {[%clk 0:02:24.7]} 21... Kxh7 {[%clk 0:00:17.5]} 22. Rxe8 {[%clk
0:02:25.2]} 22... Bxg2 {[%clk 0:00:14.2]} 23. Na3 {[%clk 0:02:15.2]} 23... Bxh3
{[%clk 0:00:12.5]} 24. Ne3 {[%clk 0:02:12.8]} 24... Be6 {[%clk 0:00:06.2]} 25.
Kh2 {[%clk 0:02:10.6]} 25... Nc6 {[%clk 0:00:03.3]} 26. Ng2 {[%clk 0:02:07.7]}
26... Nd3 {[%clk 0:00:02.2]} 27. Kg3 {[%clk 0:02:05.3]} 1-0

[Event "*** Qualifier 4: Titled Tuesday 3|2 Blitz"]
[Site "Chess.com"]
[Date "2017.04.25"]
[Round "7"]
[White "dhanushbharadwaj"]
[Black "woodhy"]
[Result "0-1"]
[WhiteElo "2445"]
[BlackElo "2399"]
[TimeControl "180+2"]
[EndTime "14:29:03 PDT"]
[Termination "woodhy won by resignation"]

1. Nf3 {[%clk 0:03:02]} 1... e6 {[%clk 0:03:01.6]} 2. c4 {[%clk 0:02:57.2]} 2...
d5 {[%clk 0:03:03.5]} 3. b3 {[%clk 0:02:55.9]} 3... Nf6 {[%clk 0:03:04]} 4. g3
{[%clk 0:02:55.5]} 4... Be7 {[%clk 0:03:04.8]} 5. Bg2 {[%clk 0:02:53.7]} 5...
O-O {[%clk 0:03:06.7]} 6. O-O {[%clk 0:02:49.8]} 6... Bd7 {[%clk 0:02:59.1]} 7.
Bb2 {[%clk 0:02:47.6]} 7... a5 {[%clk 0:02:59.4]} 8. d3 {[%clk 0:02:46.3]} 8...
a4 {[%clk 0:02:59.7]} 9. Nbd2 {[%clk 0:02:44.5]} 9... c5 {[%clk 0:02:46.2]} 10.
Rc1 {[%clk 0:02:42.7]} 10... d4 {[%clk 0:02:45]} 11. Ne5 {[%clk 0:02:41.5]}
11... Qc7 {[%clk 0:02:34.9]} 12. Nxd7 {[%clk 0:02:41.5]} 12... Nbxd7 {[%clk
0:02:36.8]} 13. Qc2 {[%clk 0:02:37]} 13... axb3 {[%clk 0:02:36.3]} 14. axb3
{[%clk 0:02:34.1]} 14... Ra2 {[%clk 0:02:31]} 15. Ra1 {[%clk 0:02:33]} 15...
Rfa8 {[%clk 0:02:32.1]} 16. Rxa2 {[%clk 0:02:33.8]} 16... Rxa2 {[%clk 0:02:34]}
17. Ra1 {[%clk 0:02:32.1]} 17... Rxa1+ {[%clk 0:02:32]} 18. Bxa1 {[%clk
0:02:28.4]} 18... Qa5 {[%clk 0:02:32.9]} 19. Bb2 {[%clk 0:02:26]} 19... b6
{[%clk 0:02:16.3]} 20. h3 {[%clk 0:02:24.9]} 20... Nb8 {[%clk 0:02:09.3]} 21.
Qc1 {[%clk 0:02:22]} 21... Nfd7 {[%clk 0:01:55.9]} 22. g4 {[%clk 0:02:06.6]}
22... Bg5 {[%clk 0:01:47.7]} 23. b4 {[%clk 0:01:03.4]} 23... Qxb4 {[%clk
0:01:43.9]} 24. Qa1 {[%clk 0:00:53.5]} 24... Bxd2 {[%clk 0:01:40.1]} 25. Qa7
{[%clk 0:00:54.7]} 25... Qxb2 {[%clk 0:01:33.5]} 26. Qc7 {[%clk 0:00:52.4]}
26... Qc1+ {[%clk 0:01:31]} 27. Bf1 {[%clk 0:00:52.6]} 27... g6 {[%clk
0:01:29.8]} 0-1

[Event "*** Qualifier 4: Titled Tuesday 3|2 Blitz"]
[Site "Chess.com"]
[Date "2017.04.25"]
[Round "7"]
[White "djogrodek1"]
[Black "Mbneu"]
[Result "1-0"]
[WhiteElo "2373"]
[BlackElo "2173"]
[TimeControl "180+2"]
[EndTime "14:29:08 PDT"]
[Termination "djogrodek1 won on time"]

1. e4 {[%clk 0:03:02]} 1... e5 {[%clk 0:03:00.4]} 2. Nf3 {[%clk 0:03:03.1]} 2...
Nc6 {[%clk 0:03:01.9]} 3. Bc4 {[%clk 0:03:04.6]} 3... Nf6 {[%clk 0:03:01.6]} 4.
d3 {[%clk 0:03:05.1]} 4... Bc5 {[%clk 0:03:01.6]} 5. O-O {[%clk 0:03:06.5]} 5...
h6 {[%clk 0:03:01.8]} 6. c3 {[%clk 0:03:05.9]} 6... a6 {[%clk 0:03:02.3]} 7. Bb3
{[%clk 0:03:06.4]} 7... Ba7 {[%clk 0:03:02.7]} 8. Nbd2 {[%clk 0:03:07.5]} 8...
d6 {[%clk 0:03:03.2]} 9. Re1 {[%clk 0:03:08.8]} 9... Bg4 {[%clk 0:03:03.2]} 10.
h3 {[%clk 0:03:09.1]} 10... Bh5 {[%clk 0:03:04.4]} 11. Nf1 {[%clk 0:03:10]}
11... Qd7 {[%clk 0:02:59.7]} 12. Ng3 {[%clk 0:03:10.5]} 12... Bg6 {[%clk
0:02:56.1]} 13. Nh4 {[%clk 0:03:10.6]} 13... O-O-O {[%clk 0:02:55.3]} 14. Ba4
{[%clk 0:02:45.2]} 14... Bh7 {[%clk 0:02:44.6]} 15. b4 {[%clk 0:02:45.8]} 15...
d5 {[%clk 0:02:28.8]} 16. Qb3 {[%clk 0:02:39.1]} 16... dxe4 {[%clk 0:02:24.8]}
17. dxe4 {[%clk 0:02:39.6]} 17... Qd3 {[%clk 0:02:01.8]} 18. Bxc6 {[%clk
0:02:33]} 18... Qxg3 {[%clk 0:01:58.2]} 19. Be3 {[%clk 0:02:32.5]} 19... Bxe3
{[%clk 0:01:55.7]} 20. Rxe3 {[%clk 0:02:34.4]} 20... Qxh4 {[%clk 0:01:56]} 21.
b5 {[%clk 0:02:32.3]} 21... a5 {[%clk 0:01:41.9]} 22. Qxf7 {[%clk 0:02:15.9]}
22... Rhf8 {[%clk 0:01:07.2]} 23. Qe6+ {[%clk 0:02:16.2]} 23... Kb8 {[%clk
0:01:05.5]} 24. Bxb7 {[%clk 0:02:11.1]} 24... Nxe4 {[%clk 0:00:53.9]} 25. Qa6
{[%clk 0:02:02.3]} 25... Qxf2+ {[%clk 0:00:46.7]} 26. Kh1 {[%clk 0:01:56.4]}
26... c5 {[%clk 0:00:13.5]} 27. b6 {[%clk 0:01:56.2]} 27... Ng3+ {[%clk
0:00:07.5]} 28. Kh2 {[%clk 0:01:57.4]} 1-0

[Event "*** Qualifier 4: Titled Tuesday 3|2 Blitz"]
[Site "Chess.com"]
[Date "2017.04.25"]
[Round "7"]
[White "DiogenesSinopeus"]
[Black "swayamsm"]
[Result "0-1"]
[WhiteElo "2256"]
[BlackElo "2421"]
[TimeControl "180+2"]
[EndTime "14:29:38 PDT"]
[Termination "swayamsm won by checkmate"]

1. d4 {[%clk 0:03:02]} 1... Nf6 {[%clk 0:02:55]} 2. c4 {[%clk 0:03:03.3]} 2...
e6 {[%clk 0:02:55.4]} 3. Nc3 {[%clk 0:03:04.7]} 3... Bb4 {[%clk 0:02:55.4]} 4.
e3 {[%clk 0:03:06.3]} 4... b6 {[%clk 0:02:55.6]} 5. Ne2 {[%clk 0:03:07.2]} 5...
Ba6 {[%clk 0:02:48.7]} 6. Ng3 {[%clk 0:03:08.2]} 6... O-O {[%clk 0:02:37.2]} 7.
e4 {[%clk 0:03:08.4]} 7... d5 {[%clk 0:02:32.3]} 8. cxd5 {[%clk 0:03:08.3]} 8...
Bxf1 {[%clk 0:02:31.3]} 9. Kxf1 {[%clk 0:03:10.2]} 9... Bxc3 {[%clk 0:02:24.1]}
10. bxc3 {[%clk 0:03:12.1]} 10... exd5 {[%clk 0:02:25.4]} 11. e5 {[%clk
0:03:13.7]} 11... Ne4 {[%clk 0:02:26.8]} 12. Ne2 {[%clk 0:02:40]} 12... c5
{[%clk 0:02:19.9]} 13. h4 {[%clk 0:02:33.2]} 13... cxd4 {[%clk 0:02:20.6]} 14.
cxd4 {[%clk 0:02:33.6]} 14... f6 {[%clk 0:02:18.3]} 15. Ba3 {[%clk 0:02:14.2]}
15... fxe5 {[%clk 0:02:11.1]} 16. Bxf8 {[%clk 0:02:10.2]} 16... Qxf8 {[%clk
0:02:13]} 17. f3 {[%clk 0:02:06]} 17... Nc6 {[%clk 0:02:10]} 18. Kg1 {[%clk
0:01:56.5]} 18... Nf6 {[%clk 0:02:04.6]} 19. Rc1 {[%clk 0:01:49.8]} 19... Qd6
{[%clk 0:01:49.1]} 20. Qc2 {[%clk 0:01:26.3]} 20... Nxd4 {[%clk 0:01:44.4]} 21.
Nxd4 {[%clk 0:01:27.3]} 21... exd4 {[%clk 0:01:46.3]} 22. Qc6 {[%clk 0:01:21.7]}
22... Qf8 {[%clk 0:01:40.6]} 23. Kh2 {[%clk 0:01:10]} 23... Re8 {[%clk
0:01:34.3]} 24. Rhd1 {[%clk 0:01:03.7]} 24... Qe7 {[%clk 0:01:24.4]} 25. Re1
{[%clk 0:00:15.7]} 25... Ng4+ {[%clk 0:01:24.9]} 26. Kg3 {[%clk 0:00:11.6]}
26... Ne3 {[%clk 0:01:25.8]} 27. Qc7 {[%clk 0:00:06.2]} 27... Nf5+ {[%clk
0:01:26.2]} 28. Kh3 {[%clk 0:00:05.7]} 28... Qxh4# {[%clk 0:01:26.7]} 0-1

[Event "*** Qualifier 4: Titled Tuesday 3|2 Blitz"]
[Site "Chess.com"]
[Date "2017.04.25"]
[Round "7"]
[White "jcibarra"]
[Black "GrigorGrigorov"]
[Result "0-1"]
[WhiteElo "2674"]
[BlackElo "2527"]
[TimeControl "180+2"]
[EndTime "14:30:33 PDT"]
[Termination "GrigorGrigorov won on time"]

1. e4 {[%clk 0:03:02]} 1... g6 {[%clk 0:03:00.5]} 2. d4 {[%clk 0:03:02.8]} 2...
Bg7 {[%clk 0:03:01.8]} 3. Nf3 {[%clk 0:03:04.4]} 3... d6 {[%clk 0:03:02.7]} 4.
Bc4 {[%clk 0:03:05.8]} 4... Nf6 {[%clk 0:03:03.3]} 5. Qe2 {[%clk 0:03:06.6]}
5... O-O {[%clk 0:03:03.7]} 6. e5 {[%clk 0:03:08.1]} 6... dxe5 {[%clk 0:03:04]}
7. dxe5 {[%clk 0:03:10]} 7... Nd5 {[%clk 0:03:05.6]} 8. h3 {[%clk 0:03:11]} 8...
Be6 {[%clk 0:03:04.8]} 9. O-O {[%clk 0:03:12.1]} 9... c6 {[%clk 0:03:02.9]} 10.
Bb3 {[%clk 0:03:08.2]} 10... Nd7 {[%clk 0:03:02.9]} 11. Re1 {[%clk 0:03:07.3]}
11... a5 {[%clk 0:03:01.5]} 12. a3 {[%clk 0:03:06.6]} 12... Qc7 {[%clk
0:02:59.9]} 13. Nbd2 {[%clk 0:03:01.4]} 13... Nf4 {[%clk 0:02:52.9]} 14. Qe4
{[%clk 0:03:01]} 14... Bxb3 {[%clk 0:02:52.4]} 15. Nxb3 {[%clk 0:02:58.6]} 15...
Ne6 {[%clk 0:02:53.4]} 16. a4 {[%clk 0:02:39.2]} 16... Ndc5 {[%clk 0:02:52.6]}
17. Nxc5 {[%clk 0:02:39.8]} 17... Nxc5 {[%clk 0:02:53.2]} 18. Qh4 {[%clk
0:02:36.7]} 18... Ne6 {[%clk 0:02:53.6]} 19. Bh6 {[%clk 0:02:35.7]} 19... Rad8
{[%clk 0:02:52]} 20. b3 {[%clk 0:02:16.2]} 20... Rd7 {[%clk 0:02:49.9]} 21. Bxg7
{[%clk 0:02:11.2]} 21... Kxg7 {[%clk 0:02:50.5]} 22. Ng5 {[%clk 0:02:11.7]}
22... Nxg5 {[%clk 0:02:50.1]} 23. Qxg5 {[%clk 0:02:13.6]} 23... e6 {[%clk
0:02:49.8]} 24. Qf6+ {[%clk 0:01:58.1]} 24... Kg8 {[%clk 0:02:50.2]} 25. h4
{[%clk 0:01:57.6]} 25... Qd8 {[%clk 0:02:46.9]} 26. Qf4 {[%clk 0:01:57.1]} 26...
h5 {[%clk 0:02:30.6]} 27. Kh2 {[%clk 0:01:44.8]} 27... Rd4 {[%clk 0:02:20.5]}
28. Re4 {[%clk 0:01:43.5]} 28... Rxe4 {[%clk 0:02:21.3]} 29. Qxe4 {[%clk
0:01:45.4]} 29... Qd2 {[%clk 0:02:21.9]} 30. Rf1 {[%clk 0:01:16.6]} 30... Rd8
{[%clk 0:02:18.9]} 31. Kg3 {[%clk 0:00:24.9]} 31... Rd4 {[%clk 0:02:14.6]} 32.
Qe3 {[%clk 0:00:24.3]} 32... Rg4+ {[%clk 0:02:11.4]} 33. Kh3 {[%clk 0:00:20.6]}
33... Qxc2 {[%clk 0:02:12.1]} 34. f3 {[%clk 0:00:16.1]} 34... Rb4 {[%clk
0:02:08.3]} 35. Qg5 {[%clk 0:00:11.2]} 35... Rxb3 {[%clk 0:02:00.9]} 36. Qd8+
{[%clk 0:00:12.1]} 36... Kh7 {[%clk 0:02:01.7]} 37. Rd1 {[%clk 0:00:11.5]} 37...
Rb2 {[%clk 0:01:53.3]} 38. Rg1 {[%clk 0:00:08]} 38... Qf5+ {[%clk 0:01:50.5]}
39. Kh2 {[%clk 0:00:09.4]} 39... Qxe5+ {[%clk 0:01:51.3]} 40. Kh1 {[%clk
0:00:09.9]} 40... Kg7 {[%clk 0:01:48.8]} 41. Rd1 {[%clk 0:00:05.2]} 41... Rb4
{[%clk 0:01:42.8]} 42. Rg1 {[%clk 0:00:02.7]} 42... Qg3 {[%clk 0:01:41.6]} 0-1